Workbook

Sheet Day
B1: Dedicated Interface (Open Banking API) | H1: PSU Interface
A2: Date | B2: Uptime (%) | C2: Downtime (%) | D2: AISP Response(ms) | E2: Requests | F2: Errors | G2: Error Rate(%) | H2: Uptime (%) | I2: Downtime (%) | J2: AISP Response (ms) Web | K2: AISP Response (ms) Mobile | L2: BT MT Payment (ms)
A3: 2024-04-01 | B3: 1 | C3: =1-B3 -> 0 | D3: 1400.431415 | E3: 637915 | F3: 4 | G3: =F3/(F3+E3) -> 6.27038856e-06 | H3: 0.9996598147 | I3: =1-H3 -> 0.0003401853032 | J3: 407.1279805 | K3: 1120.864078 | L3: 1842.407665
A4: 2024-04-02 | B4: 0.9830910274 | C4: =1-B4 -> 0.01690897259 | D4: 614.2059927 | E4: 621116 | F4: 4712 | G4: =F4/(F4+E4) -> 0.007529225282 | H4: 0.9995990856 | I4: =1-H4 -> 0.0004009144025 | J4: 494.6565201 | K4: 1198.533982 | L4: 1853.211289
A5: 2024-04-03 | B5: 1 | C5: =1-B5 -> 0 | D5: 622.2435665 | E5: 414705 | F5: 2 | G5: =F5/(F5+E5) -> 4.822682038e-06 | H5: 0.9996858611 | I5: =1-H5 -> 0.0003141389041 | J5: 512.6417881 | K5: 1250.24739 | L5: 2121.960492
A6: 2024-04-04 | B6: 1 | C6: 0 | D6: 551.6271149 | E6: 486099 | F6: 1 | G6: =F6/(F6+E6) -> 2.057189879e-06 | H6: 0.9997074638 | I6: 0.0002925361937 | J6: 509.5041305 | K6: 1223.382275 | L6: 2039.024684
A7: 2024-04-05 | B7: 1 | C7: 0 | D7: 475.7814447 | E7: 370169 | F7: 0 | G7: 0 | H7: 0.9991755827 | I7: 0.0008244173312 | J7: 610.2508122 | K7: 1371.074765 | L7: 2123.963312
A8: 2024-04-06 | B8: 1 | C8: 0 | D8: 867.6245371 | E8: 304791 | F8: 14 | G8: 4.593100507e-05 | H8: 0.9996235704 | I8: 0.000376429581 | J8: 485.7969338 | K8: 1150.192896 | L8: 2077.603911
A9: 2024-04-07 | B9: 1 | C9: 0 | D9: 439.0350483 | E9: 321509 | F9: 4 | G9: 1.244117656e-05 | H9: 0.9995068383 | I9: 0.000493161735 | J9: 455.3050883 | K9: 1132.490302 | L9: 1998.500953
A10: 2024-04-08 | B10: 0.9822643211 | C10: 0.01773567885 | D10: 780.982646 | E10: 392823 | F10: 4855 | G10: 0.01220836959 | H10: 0.9995367267 | I10: 0.0004632733125 | J10: 535.2667276 | K10: 1223.854479 | L10: 1949.999737
A11: 2024-04-09 | B11: 1 | C11: 0 | D11: 1128.355636 | E11: 378718 | F11: 5 | G11: =F11/(F11+E11) -> 1.320226128e-05 | H11: 0.9995965085 | I11: 0.0004034915158 | J11: 555.6751452 | K11: 1307.084471 | L11: 2012.738357
A12: 2024-04-10 | B12: 1 | C12: 0 | D12: 837.8566041 | E12: 416484 | F12: 5 | G12: 1.200511898e-05 | H12: 0.9943699496 | I12: 0.005630050377 | J12: 547.7604789 | K12: 1333.573053 | L12: 1971.22503
A13: 2024-04-11 | B13: 0.9953889682 | C13: 0.004611031769 | D13: 1350.477603 | E13: 420536 | F13: 46 | G13: 0.0001093722508 | H13: 0.9980930059 | I13: 0.001906994144 | J13: 554.43557 | K13: 1305.020989 | L13: 1940.134795
A14: 2024-04-12 | B14: 1 | C14: 0 | D14: 1334.056595 | E14: 438601 | F14: 43 | G14: 9.802938146e-05 | H14: 0.9974037612 | I14: 0.002596238816 | J14: 550.9364432 | K14: 1259.92503 | L14: 1991.831825
A15: 2024-04-13 | B15: 1 | C15: 0 | D15: 1226.775845 | E15: 451792 | F15: 38 | G15: 8.41024279e-05 | H15: 0.999631045 | I15: 0.0003689549587 | J15: 513.08995 | K15: 1190.457706 | L15: 2003.726639
A16: 2024-04-14 | B16: 1 | C16: 0 | D16: 1228.748072 | E16: 372849 | F16: 67 | G16: 0.0001796651257 | H16: 0.9995728332 | I16: 0.0004271667777 | J16: 483.0950486 | K16: 1169.324367 | L16: 1992.682335
A17: 2024-04-15 | B17: 0.9994516478 | C17: 0.000548352191 | D17: 1539.231007 | E17: 497096 | F17: 58 | G17: 0.0001166640518 | H17: 0.9994806242 | I17: 0.0005193758368 | J17: 507.3739866 | K17: 1227.597582 | L17: 1981.534494
A18: 2024-04-16 | B18: 1 | C18: 0 | D18: 1146.348197 | E18: 430078 | F18: 36 | G18: 8.369874033e-05 | H18: 0.999340222 | I18: 0.0006597779851 | J18: 600.3890842 | K18: 1287.745024 | L18: 2106.256354
A19: 2024-04-17 | B19: 1 | C19: 0 | D19: 1317.522851 | E19: 199683 | F19: 63 | G19: 0.0003154005587 | H19: 0.9996001648 | I19: 0.0003998351522 | J19: 548.3006988 | K19: 1289.09426 | L19: 2054.561117
A20: 2024-04-18 | B20: 1 | C20: 0 | D20: 1604.039235 | E20: 145251 | F20: 79 | G20: 0.0005435904493 | H20: 0.9994146541 | I20: 0.0005853459179 | J20: 549.8291702 | K20: 1277.681787 | L20: 1963.441011
A21: 2024-04-19 | B21: 1 | C21: 0 | D21: 1448.365983 | E21: 156189 | F21: 57 | G21: 0.0003648093391 | H21: 0.9995955843 | I21: 0.0004044157416 | J21: 545.550476 | K21: 1239.55625 | L21: 2014.284432
A22: 2024-04-20 | B22: 1 | C22: 0 | D22: 1265.582658 | E22: 109400 | F22: 43 | G22: 0.0003928985865 | H22: 0.999637288 | I22: 0.0003627119577 | J22: 513.208688 | K22: 1166.255212 | L22: 2131.294519
A23: 2024-04-21 | B23: 0.998011496 | C23: 0.001988503958 | D23: 1460.034645 | E23: 137957 | F23: 234 | G23: 0.001693308537 | H23: 0.9996413749 | I23: 0.0003586251387 | J23: 481.9896745 | K23: 1154.928802 | L23: 2021.690716
A24: 2024-04-22 | B24: =1-(F24/E24) -> 0.9976010497 | C24: 0.002398950258 | D24: 1235.371306 | E24: 124221 | F24: 298 | G24: 0.002393209068 | H24: 0.9986415897 | I24: 0.001358410338 | J24: 503.062929 | K24: 1245.79857 | L24: 2053.866278
A25: 2024-04-23 | B25: 0.9972442408 | C25: 0.002755759157 | D25: 466.6891055 | E25: 440016 | F25: 1891 | G25: 0.004279180914 | H25: 0.9986933089 | I25: 0.001306691065 | J25: 546.7789705 | K25: 1269.706177 | L25: 2096.058876
A26: 2024-04-24 | B26: 1 | C26: 0 | D26: 135.4340274 | E26: 472979 | F26: 0 | G26: 0 | H26: 0.9996018853 | I26: 0.0003981146737 | J26: 511.5740267 | K26: 1247.804316 | L26: 2017.981174
A27: 2024-04-25 | B27: 1 | C27: 0 | D27: 129.9629095 | E27: 492505 | F27: 0 | G27: 0 | H27: 0.9948028781 | I27: 0.005197121853 | J27: 516.8766284 | K27: 1211.793861 | L27: 2078.47946
A28: 2024-04-26 | B28: 0.9975954273 | C28: 0.002404572685 | D28: 142.3240427 | E28: 508352 | F28: 509 | G28: 0.001000273159 | H28: 0.9996467476 | I28: 0.0003532524357 | J28: 499.9514745 | K28: 1139.277517 | L28: 2080.723905
A29: 2024-04-27 | B29: 0.9995177964 | C29: 0.0004822035833 | D29: 125.1749656 | E29: 449592 | F29: 15 | G29: 3.336246989e-05 | H29: 0.9995896075 | I29: 0.0004103925066 | J29: 464.8237817 | K29: 1109.937135 | L29: 2134.751045
A30: 2024-04-28 | B30: 1 | C30: 0 | D30: 122.4049459 | E30: 457189 | F30: 0 | G30: 0 | H30: 0.9995741261 | I30: 0.0004258739413 | J30: 444.8707964 | K30: 1118.299101 | L30: 2045.169684
A31: 2024-04-29 | B31: 0.9993831788 | C31: 0.0006168212431 | D31: 714.3787115 | E31: 399447 | F31: 108 | G31: 0.0002703007095 | H31: 0.9996374688 | I31: 0.000362531211 | J31: 518.1396012 | K31: 1199.331742 | L31: 2073.236591
A32: 2024-04-30 | B32: 1 | C32: 0 | D32: 1054.422431 | E32: 284972 | F32: 30 | G32: 0.0001052624192 | H32: 0.99966939 | I32: 0.0003306099851 | J32: 525.1776415 | K32: 1265.04475 | L32: 2110.160865
A33: 2024-05-01 | B33: 1 | C33: 0 | D33: 770.8463912 | E33: 312620 | F33: 4 | G33: 1.279492297e-05 | H33: 0.999416844 | I33: 0.0005831560009 | J33: 480.9850898 | K33: 1331.008721 | L33: 2028.484111
A34: 2024-05-02 | B34: 0.9965833696 | C34: 0.003416630414 | D34: 744.4053726 | E34: 302666 | F34: 285 | G34: 0.0009407461933 | H34: 0.9985393371 | I34: 0.001460662922 | J34: 495.0726148 | K34: 1325.682926 | L34: 2147.108518
A35: 2024-05-03 | B35: 0.9994272726 | C35: 0.0005727274016 | D35: 875.6968838 | E35: 324272 | F35: 30 | G35: 9.250636752e-05 | H35: 0.999615398 | I35: 0.0003846019512 | J35: 542.6175197 | K35: 1289.031329 | L35: 2073.343412
A36: 2024-05-04 | B36: 1 | C36: 0 | D36: 536.9703428 | E36: 393186 | F36: 11 | G36: 2.797579839e-05 | H36: 0.999643843 | I36: 0.0003561569519 | J36: 498.1192068 | K36: 1280.777034 | L36: 2122.720254
A37: 2024-05-05 | B37: 1 | C37: 0 | D37: 531.6036612 | E37: 389243 | F37: 12 | G37: 3.082812038e-05 | H37: 0.999626188 | I37: 0.0003738120245 | J37: 488.0309975 | K37: 1288.336191 | L37: 2021.278621
A38: 2024-05-06 | B38: 1 | C38: 0 | D38: 538.1749141 | E38: 387838 | F38: 2 | G38: 5.156765677e-06 | H38: 0.9995507326 | I38: 0.0004492673903 | J38: 456.5903114 | K38: 1281.27058 | L38: 2002.682441
A39: 2024-05-07 | B39: 0.9989883419 | C39: 0.001011658108 | D39: 760.4291987 | E39: 393695 | F39: 23 | G39: 5.841744599e-05 | H39: 0.9993034308 | I39: 0.0006965691975 | J39: 609.2404319 | K39: 1479.978319 | L39: 2233.869997
A40: 2024-05-08 | B40: 1 | C40: 0 | D40: 656.8822746 | E40: 397497 | F40: 27 | G40: 6.792042745e-05 | H40: 0.9996227632 | I40: 0.0003772367892 | J40: 675.0294481 | K40: 1716.234472 | L40: 2214.373048
A41: 2024-05-09 | B41: 0.9976401094 | C41: 0.002359890634 | D41: 751.9758149 | E41: 393338 | F41: 75 | G41: 0.0001906393536 | H41: 0.9995900712 | I41: 0.0004099287878 | J41: 705.0428388 | K41: 1886.892182 | L41: 2154.335546
A42: 2024-05-10 | B42: 0.9939602312 | C42: 0.006039768751 | D42: 607.3239215 | E42: 479655 | F42: 347 | G42: 0.0007229136545 | H42: 0.9996515972 | I42: 0.0003484027595 | J42: 715.5529854 | K42: 1797.248056 | L42: 2152.510068
A43: 2024-05-11 | B43: 0.9964848212 | C43: 0.003515178778 | D43: 404.5705218 | E43: 465150 | F43: 89 | G43: 0.0001912995256 | H43: 0.9995822899 | I43: 0.0004177100604 | J43: 658.5981413 | K43: 1762.511342 | L43: 2226.793484
A44: 2024-05-12 | B44: 0.9948341457 | C44: 0.005165854329 | D44: 625.1221307 | E44: 472793 | F44: 115 | G44: 0.0002431762626 | H44: 0.9995967261 | I44: 0.0004032739092 | J44: 616.7023112 | K44: 1747.253205 | L44: 2048.798393
A45: 2024-05-13 | B45: 0.9971313283 | C45: 0.002868671708 | D45: 469.750063 | E45: 486436 | F45: 99 | G45: 0.0002034797086 | H45: 0.9994223283 | I45: 0.0005776716838 | J45: 662.8101547 | K45: 1821.817425 | L45: 2106.168708
A46: 2024-05-14 | B46: 0.9975798466 | C46: 0.002420153394 | D46: 876.2613354 | E46: 476316 | F46: 87 | G46: 0.0001826184974 | H46: 0.9994689282 | I46: 0.0005310718094 | J46: 711.5370391 | K46: 1913.692466 | L46: 2251.71941
A47: 2024-05-15 | B47: 1 | C47: 0 | D47: 650.8227401 | E47: 475651 | F47: 5 | G47: 1.051179844e-05 | H47: 0.9995504456 | I47: 0.0004495544286 | J47: 689.0458276 | K47: 1849.628268 | L47: 2157.718234
A48: 2024-05-16 | B48: 1 | C48: 0 | D48: 775.5570397 | E48: 476002 | F48: 16 | G48: 3.361217433e-05 | H48: 0.999426571 | I48: 0.0005734290062 | J48: 679.9509237 | K48: 1848.033872 | L48: 2215.244636
A49: 2024-05-17 | B49: 0.9935754588 | C49: 0.006424541213 | D49: 793.5046547 | E49: 475945 | F49: 382 | G49: 0.0008019700752 | H49: 0.9991164998 | I49: 0.0008835001505 | J49: 684.836288 | K49: 1807.383996 | L49: 2291.254645
A50: 2024-05-18 | B50: 1 | C50: 0 | D50: 578.973886 | E50: 467668 | F50: 6 | G50: 1.282944957e-05 | H50: 0.9994516948 | I50: 0.0005483052329 | J50: 658.4343989 | K50: 1794.059135 | L50: 2204.21579
A51: 2024-05-19 | B51: 1 | C51: 0 | D51: 681.2432557 | E51: 469309 | F51: 35 | G51: 7.457216881e-05 | H51: 0.9996681053 | I51: 0.0003318947267 | J51: 618.6648527 | K51: 1763.095935 | L51: 2225.677843
A52: 2024-05-20 | B52: 1 | C52: 0 | D52: 746.9811588 | E52: 480020 | F52: 2 | G52: 4.166475703e-06 | H52: 0.999618741 | I52: 0.0003812590057 | J52: 641.5748134 | K52: 1771.541207 | L52: 2228.629116
A53: 2024-05-21 | B53: 0.8069730125 | C53: 0.1930269875 | D53: 4674.29849 | E53: 431360 | F53: 6372 | G53: 0.01455685214 | H53: 0.9996469694 | I53: 0.0003530305577 | J53: 677.3308147 | K53: 1882.924773 | L53: 2505.497692
A54: 2024-05-22 | B54: 0.9996354646 | C54: 0.0003645354398 | D54: 1080.779081 | E54: 465851 | F54: 26 | G54: 5.580872204e-05 | H54: 0.9993019051 | I54: 0.0006980948751 | J54: 665.5649427 | K54: 1887.217123 | L54: 2309.511473
A55: 2024-05-23 | B55: 0.9996362294 | C55: 0.0003637705718 | D55: 1104.490393 | E55: 468641 | F55: 26 | G55: 5.54764897e-05 | H55: 0.9993810296 | I55: 0.0006189704219 | J55: 680.4519348 | K55: 1853.249477 | L55: 2198.474408
A56: 2024-05-24 | B56: 1 | C56: 0 | D56: 1039.351967 | E56: 462939 | F56: 23 | G56: 4.968010333e-05 | H56: 0.9966915622 | I56: 0.003308437848 | J56: 678.570001 | K56: 1787.775841 | L56: 2308.578879
A57: 2024-05-25 | B57: 0.9967577442 | C57: 0.003242255838 | D57: 682.8279094 | E57: 451652 | F57: 602 | G57: 0.001331110394 | H57: 0.9984710576 | I57: 0.001528942418 | J57: 620.0485414 | K57: 1751.24597 | L57: 2242.605726
A58: 2024-05-26 | B58: 1 | C58: 0 | D58: 677.3471894 | E58: 450537 | F58: 16 | G58: 3.551191536e-05 | H58: 0.9993448658 | I58: 0.0006551342022 | J58: 599.2005373 | K58: 1761.90851 | L58: 2150.666795
A59: 2024-05-27 | B59: 1 | C59: 0 | D59: 921.6715914 | E59: 460117 | F59: 12 | G59: 2.607964288e-05 | H59: 0.9985153158 | I59: 0.001484684182 | J59: 568.8320221 | K59: 1721.314008 | L59: 2086.632693
A60: 2024-05-28 | B60: 1 | C60: 0 | D60: 1172.850485 | E60: 455315 | F60: 63 | G60: 0.0001383466044 | H60: 0.9969569818 | I60: 0.003043018179 | J60: 643.6183214 | K60: 1742.893502 | L60: 2232.615682
A61: 2024-05-29 | B61: 1 | C61: 0 | D61: 916.9327836 | E61: 433626 | F61: 19 | G61: 4.381464101e-05 | H61: 0.9996255472 | I61: 0.0003744527522 | J61: 595.9033287 | K61: 1596.330087 | L61: 2234.191643
A62: 2024-05-30 | B62: 1 | C62: 0 | D62: 726.3472619 | E62: 437657 | F62: 20 | G62: 4.56957985e-05 | H62: 0.9996593434 | I62: 0.0003406565818 | J62: 580.4950702 | K62: 1584.458377 | L62: 2255.674082
A63: 2024-05-31 | B63: 1 | C63: 0 | D63: 855.4622823 | E63: 466482 | F63: 50 | G63: 0.0001071737844 | H63: 0.9996757783 | I63: 0.0003242217201 | J63: 575.0182715 | K63: 1458.98621 | L63: 2375.307845
A64: 2024-06-01 | B64: 1 | C64: 0 | D64: 881.9019967 | E64: 468514 | F64: 25 | G64: 5.335735126e-05 | H64: 0.9997162681 | I64: 0.0002837319266 | J64: 534.6688288 | K64: 1427.586649 | L64: 2278.259947
A65: 2024-06-02 | B65: 1 | C65: 0 | D65: 882.7368726 | E65: 451994 | F65: 43 | G65: 9.512495659e-05 | H65: 0.9997040754 | I65: 0.0002959245767 | J65: 470.7583549 | K65: 1387.626796 | L65: 2145.227903
A66: 2024-06-03 | B66: 1 | C66: 0 | D66: 814.8770505 | E66: 476682 | F66: 13 | G66: 2.727110626e-05 | H66: 0.9993721283 | I66: 0.0006278717081 | J66: 490.6228474 | K66: 1586.827219 | L66: 2014.584432
A67: 2024-06-04 | B67: 0.9991335037 | C67: 0.0008664963322 | D67: 1018.118569 | E67: 457924 | F67: 88 | G67: 0.0001921347039 | H67: 0.9909289834 | I67: 0.00907101656 | J67: 531.5404601 | K67: 1494.368606 | L67: 2214.611712
A68: 2024-06-05 | B68: =1 - (F68/E68) -> 0.9977283567 | C68: 0.002271643281 | D68: 1300.968266 | E68: 450775 | F68: 1024 | G68: 0.002266494614 | H68: 0.9971494055 | I68: 0.002850594537 | J68: 631.4317961 | K68: 1531.220559 | L68: 2230.184551
A69: 2024-06-06 | B69: 1 | C69: =1-B69 -> 0 | D69: 954.180146 | E69: 448766 | F69: 57 | G69: 0.0001269988392 | H69: 0.9996145805 | I69: =1-H69 -> 0.0003854194816 | J69: 581.0202893 | K69: 1544.867174 | L69: 2175.599532
A70: 2024-06-07 | B70: 0.998122325 | C70: 0.001877675019 | D70: 896.7316767 | E70: 451575 | F70: 76 | G70: =F70/(F70+E70) -> 0.0001682715194 | H70: 0.9996263531 | I70: 0.0003736468771 | J70: 583.7640045 | K70: 1486.591802 | L70: 2120.502503
A71: 2024-06-08 | B71: 1 | C71: 0 | D71: 805.4719682 | E71: 443579 | F71: 9 | G71: 2.028909709e-05 | H71: 0.9990862526 | I71: 0.0009137473972 | J71: 529.6945074 | K71: 1409.361797 | L71: 2296.514395
A72: 2024-06-09 | B72: 1 | C72: 0 | D72: 918.5764404 | E72: 445284 | F72: 11 | G72: 2.470272516e-05 | H72: 0.9989373116 | I72: 0.001062688394 | J72: 488.6269031 | K72: 1374.768037 | L72: 2134.872394
A73: 2024-06-10 | B73: 1 | C73: 0 | D73: 932.5526819 | E73: 453232 | F73: 69 | G73: 0.000152216739 | H73: 0.9985894826 | I73: 0.001410517393 | J73: 546.7692513 | K73: 1465.747975 | L73: 2148.363687
A74: 2024-06-11 | B74: 1 | C74: 0 | D74: 915.7634372 | E74: 450099 | F74: 24 | G74: 5.331875954e-05 | H74: 0.9993552597 | I74: 0.0006447403236 | J74: 597.311894 | K74: 1553.462886 | L74: 2150.735686
A75: 2024-06-12 | B75: 0.9991507675 | C75: 0.0008492325023 | D75: 916.2692691 | E75: 444567 | F75: 25 | G75: 5.62313312e-05 | H75: 0.9986085241 | I75: 0.001391475866 | J75: 595.549536 | K75: 1526.480241 | L75: 2206.171406
A76: 2024-06-13 | B76: 1 | C76: 0 | D76: 728.863136 | E76: 447951 | F76: 25 | G76: 5.580656107e-05 | H76: 0.999429827 | I76: 0.000570172977 | J76: 620.0438031 | K76: 1400.751255 | L76: 2121.890454
A77: 2024-06-14 | B77: 1 | C77: 0 | D77: 718.870127 | E77: 447011 | F77: 19 | G77: 4.250274031e-05 | H77: 0.9994945504 | I77: 0.0005054495533 | J77: 657.2141191 | K77: 1120.871508 | L77: 2120.871871
A78: 2024-06-15 | B78: 1 | C78: 0 | D78: 650.8609472 | E78: 447741 | F78: 5 | G78: 1.11670456e-05 | H78: 0.9995678022 | I78: 0.0004321978229 | J78: 647.9353107 | K78: 1087.430768 | L78: 2149.517482
A79: 2024-06-16 | B79: 1 | C79: 0 | D79: 527.5782113 | E79: 448005 | F79: 0 | G79: 0 | H79: 0.9995505026 | I79: 0.0004494974336 | J79: 570.4455586 | K79: 1064.302528 | L79: 2024.040172
A80: 2024-06-17 | B80: 1 | C80: 0 | D80: 544.371088 | E80: 468747 | F80: 3 | G80: 6.4e-06 | H80: 0.9995186001 | I80: 0.0004813998533 | J80: 634.2719064 | K80: 1116.404208 | L80: 1912.966618
A81: 2024-06-18 | B81: 1 | C81: 0 | D81: 468.8820827 | E81: 450083 | F81: 4 | G81: 8.887170703e-06 | H81: 0.9993811731 | I81: 0.0006188269362 | J81: 687.0468325 | K81: 1142.339143 | L81: 2163.542372
A82: 2024-06-19 | B82: 1 | C82: 0 | D82: 453.501556 | E82: 451589 | F82: 3 | G82: 6.643164626e-06 | H82: 0.9995031708 | I82: 0.0004968291902 | J82: 646.7594536 | K82: 1108.311834 | L82: 2212.151086
A83: 2024-06-20 | B83: 1 | C83: 0 | D83: 576.2386478 | E83: 457164 | F83: 2 | G83: 4.374778527e-06 | H83: 0.9995450293 | I83: 0.0004549707366 | J83: 613.0470293 | K83: 1088.40368 | L83: 2143.88633
A84: 2024-06-21 | B84: 1 | C84: 0 | D84: 521.0402096 | E84: 464468 | F84: 1 | G84: 2.152996217e-06 | H84: 0.9995624596 | I84: 0.0004375404403 | J84: 662.8397683 | K84: 1132.722602 | L84: 2110.376573
A85: 2024-06-22 | B85: 1 | C85: 0 | D85: 488.4728918 | E85: 461907 | F85: 2 | G85: 4.32985718e-06 | H85: 0.9993753869 | I85: 0.0006246130809 | J85: 615.062522 | K85: 1069.412862 | L85: 2225.785766
A86: 2024-06-23 | B86: 1 | C86: 0 | D86: 489.6911157 | E86: 454250 | F86: 2 | G86: 4.402842475e-06 | H86: 0.9994726684 | I86: 0.000527331579 | J86: 557.5739399 | K86: 1010.006847 | L86: 2120.395341
A87: 2024-06-24 | B87: 1 | C87: 0 | D87: 442.5301005 | E87: 466086 | F87: 1 | G87: 2.145522188e-06 | H87: 0.9995215292 | I87: 0.0004784707905 | J87: 615.1873741 | K87: 1060.653638 | L87: 2115.338579
A88: 2024-06-25 | B88: 1 | C88: 0 | D88: 426.0041281 | E88: 441419 | F88: 1 | G88: 2.265416157e-06 | H88: 0.9994975184 | I88: 0.0005024815775 | J88: 631.2239763 | K88: 1087.682095 | L88: 2348.440187
A89: 2024-06-26 | B89: 1 | C89: 0 | D89: 417.0254428 | E89: 443633 | F89: 11 | G89: 2.479465517e-05 | H89: 0.9995876977 | I89: 0.000412302284 | J89: 648.5488529 | K89: 1102.646062 | L89: 2236.044548
A90: 2024-06-27 | B90: 1 | C90: 0 | D90: 413.5271092 | E90: 450961 | F90: 12 | G90: 2.660913181e-05 | H90: 0.9996280896 | I90: 0.0003719104358 | J90: 603.5338434 | K90: 1058.095445 | L90: 2263.583841
A91: 2024-06-28 | B91: 1 | C91: 0 | D91: 542.429864 | E91: 448856 | F91: 4 | G91: 8.911464599e-06 | H91: 0.9991288407 | I91: 0.000871159288 | J91: 655.2875999 | K91: 1040.430128 | L91: 2239.897295
A92: 2024-06-29 | B92: 1 | C92: 0 | D92: 577.6217816 | E92: 424917 | F92: 14 | G92: 3.294652544e-05 | H92: 0.9871712727 | I92: 0.01282872729 | J92: 692.6862121 | K92: 1012.596608 | L92: 2330.835709
A93: 2024-06-30 | B93: 0.9992937146 | C93: 0.0007062853981 | D93: 734.6871347 | E93: 427650 | F93: 22 | G93: 5.144129146e-05 | H93: 0.999016646 | I93: 0.0009833540484 | J93: 522.2746262 | K93: 971.2167051 | L93: 2219.377142

Sheet Month
B1: Dedicated Interface (Open Banking API) | H1: PSU Interface
A2: Row Labels | B2: Average of Uptime (%) | C2: Average of Downtime (%) | D2: Average of AISP Response(ms) | E2: Average of Requests | F2: Average of Errors | G2: Average of Error Rate(%) | H2: Average of Uptime (%)2 | I2: Average of Downtime (%)2 | J2: Average of AISP Response (ms) Web | K2: Average of AISP Response (ms) Mobile | L2: Average of BT MT Payment (ms)
A3: Apr | B3: 0.9983183051 | C3: 0.001681694876 | D3: 892.1829714 | E3: 377767.8 | F3: 440.5666667 | G3: 0.001063248429 | H3: 0.999057632 | I3: 0.0009423679697 | J3: 516.4480082 | K3: 1222.862596 | L3: 2029.416718
A4: May | B4: 0.9925550766 | C4: 0.007444923356 | D4: 878.3695159 | E4: 435596.0323 | F4: 286.483871 | G4: 0.0006565704974 | H4: 0.9992494481 | I4: 0.0007505518879 | J4: 618.4990316 | K4: 1670.444534 | L4: 2193.763974
A5: Jun | B5: 0.9997809556 | C5: 0.0002190444177 | D5: 698.6781316 | E5: 451514.3 | F5: 53.16666667 | G5: 0.0001177397635 | H5: 0.9986213797 | I5: 0.001378620345 | J5: 595.4247134 | K5: 1248.772922 | L5: 2172.48565
A6: Grand Total | B6: 0.9968372 | C6: 0.003162800031 | D6: 823.6844845 | E6: 421779.5604 | F6: 260.3626374 | G6: 0.0006130036396 | H6: 0.9989791565 | I6: 0.001020843494 | J6: 577.248919 | K6: 1383.877429 | L6: 2132.568728
